Workbook

Sheet 貨物軽自動車運送事業者数及び車両数の推移
A1: 貨物軽自動車運送事業者数及び車両数の推移
B3: 年度 | C3: 平成２９年度 | E3: 平成３０年度 | G3: 令和元年度 | I3: 令和２年度 | K3: 令和３年度
A4: 支局別 | D4: 前年比 | F4: 前年比 | H4: 前年比 | J4: 前年比 | L4: 前年比
A5: 茨 城 | B5: 事業者数 | C5: 2721 | D5: =C5/A5 ->  | E5: 2843 | F5: =E5/C5 -> 1.044836457 | G5: 2803 | H5: =G5/E5 -> 0.9859303553 | I5: 3257 | J5: =I5/G5 -> 1.161969319 | K5: 3704 | L5: =K5/I5 -> 1.137242862
B6: 車両数 | C6: 4900 | E6: 5223 | F6: 1.065918367 | G6: 5507 | H6: =G6/E6 -> 1.05437488 | I6: 6001 | J6: 1.089704013 | K6: 6619 | L6: 1.102982836
A7: 栃 木 | B7: 事業者数 | C7: 1847 | E7: 1883 | F7: 1.019491067 | G7: 1989 | H7: 1.056293149 | I7: 2220 | J7: 1.116138763 | K7: 2234 | L7: 1.006306306
B8: 車両数 | C8: 3611 | E8: 3875 | F8: 1.073109942 | G8: 4060 | H8: 1.047741935 | I8: 4304 | J8: 1.060098522 | K8: 4342 | L8: 1.008828996
A9: 群 馬 | B9: 事業者数 | C9: 2075 | E9: 2102 | F9: 1.013012048 | G9: 2201 | H9: 1.047098002 | I9: 2397 | J9: 1.089050432 | K9: 2492 | L9: 1.039632874
B10: 車両数 | C10: 3446 | E10: 3588 | F10: 1.041207197 | G10: 3832 | H10: 1.068004459 | I10: 4053 | J10: 1.057672234 | K10: 4213 | L10: 1.039476931
A11: 埼 玉 | B11: 事業者数 | C11: 16066 | E11: 17002 | F11: 1.058259679 | G11: 17710 | H11: 1.04164216 | I11: 19886 | J11: 1.122868436 | K11: 20908 | L11: 1.05139294
B12: 車両数 | C12: 17791 | E12: 18273 | F12: 1.02709235 | G12: 18727 | H12: 1.0248454 | I12: 20761 | J12: 1.108613232 | K12: 21660 | L12: 1.043302346
A13: 千 葉 | B13: 事業者数 | C13: 10593 | E13: 11073 | F13: 1.045312943 | G13: 11496 | H13: 1.03820103 | I13: 13214 | J13: 1.149443285 | K13: 14202 | L13: 1.074769184
B14: 車両数 | C14: 16289 | E14: 17870 | F14: 1.097059365 | G14: 18245 | H14: 1.020984891 | I14: 20048 | J14: 1.098821595 | K14: 20740 | L14: 1.034517159
A15: 東 京 | B15: 事業者数 | C15: 19962 | E15: 21072 | F15: 1.055605651 | G15: 22825 | H15: 1.083190964 | I15: 26397 | J15: 1.156495071 | K15: 26170 | L15: 0.9914005379
B16: 車両数 | C16: 32697 | E16: 36085 | F16: 1.103618069 | G16: 37386 | H16: 1.036053762 | I16: 41657 | J16: 1.114240625 | K16: 41638 | L16: 0.9995438942
A17: 神奈川 | B17: 事業者数 | C17: 12592 | E17: 13320 | F17: 1.057814485 | G17: 14152 | H17: 1.062462462 | I17: 16612 | J17: 1.173827021 | K17: 18133 | L17: 1.091560318
B18: 車両数 | C18: 20346 | E18: 22160 | F18: 1.089157574 | G18: 23560 | H18: 1.063176895 | I18: 26330 | J18: 1.117572156 | K18: 28145 | L18: 1.068932776
A19: 山 梨 | B19: 事業者数 | C19: 1102 | E19: 1112 | F19: 1.00907441 | G19: 1097 | H19: 0.9865107914 | I19: 1236 | J19: 1.126709207 | K19: 1259 | L19: 1.018608414
B20: 車両数 | C20: 1991 | E20: 1918 | F20: 0.9633350075 | G20: 1920 | H20: 1.001042753 | I20: 1986 | J20: 1.034375 | K20: 2037 | L20: 1.025679758
A21: 合 計 | B21: 事業者数 | C21: =C15+C17+C11+C9+C13+C5+C7+C19 -> 66958 | E21: =E15+E17+E11+E9+E13+E5+E7+E19 -> 70407 | F21: 1.051509902 | G21: =G15+G17+G11+G9+G13+G5+G7+G19 -> 74273 | H21: 1.054909313 | I21: =I15+I17+I11+I9+I13+I5+I7+I19 -> 85219 | J21: 1.147375224 | K21: 89102 | L21: 1.045564956
B22: 車両数 | C22: =C16+C18+C12+C10+C14+C6+C8+C20 -> 101071 | E22: =E16+E18+E12+E10+E14+E6+E8+E20 -> 108992 | F22: 1.07837065 | G22: =G16+G18+G12+G10+G14+G6+G8+G20 -> 113237 | H22: 1.038947813 | I22: =I16+I18+I12+I10+I14+I6+I8+I20 -> 125140 | J22: 1.105115819 | K22: 129394 | L22: 1.033993927
